bitfinex-derivatives/quotes_BTCF0:USTF0_20251225
["timestamp","ask_amount","ask_price","bid_price","bid_amount"]
[1766706691110,0.0114696,87248.0,87208.0,0.06185129]
[1766706691111,0.0114702,87244.0,87225.0,0.15532]
[1766706691324,0.0114706,87241.0,87222.0,0.0578]
[1766706691612,0.0114706,87241.0,87190.0,0.18838555]
[1766706691613,0.0114715,87234.0,87220.0,0.0578]
[1766706691812,0.0114715,87234.0,87218.0,1.99e-06]
[1766706692411,0.09752,87238.0,87218.0,1.99e-06]
[1766706692818,0.0114731,87222.0,87218.0,1.99e-06]
[1766706693132,0.00017009,87237.0,87218.0,1.99e-06]
[1766706693133,0.0114719,87230.0,87218.0,1.99e-06]
[1766706693811,0.00017009,87237.0,87218.0,1.99e-06]
[1766706693812,0.0114713,87235.0,87218.0,1.99e-06]
[1766706694008,0.0114718,87232.0,87218.0,1.99e-06]
[1766706695017,0.0114718,87232.0,87207.0,0.0114749]
[1766706695419,0.0114718,87232.0,87210.0,0.0114745]
[1766706695720,0.00017009,87237.0,87203.0,0.04927689]
[1766706695921,0.00017009,87237.0,87222.0,0.0114729]
[1766706696125,0.00017009,87237.0,87221.0,0.09752]
[1766706696824,0.00017009,87237.0,87222.0,0.0114729]
[1766706697028,0.00017009,87237.0,87221.0,0.09752]
[1766706697029,0.00017009,87237.0,87213.0,0.04123419]
[1766706697217,0.011472,87230.0,87211.0,0.00017199]
[1766706697409,0.09752,87236.0,87211.0,0.00017199]
[1766706697410,0.0114724,87226.0,87211.0,0.00017199]
[1766706697823,0.12507847,87230.0,87209.0,0.03150643]
[1766706698123,0.0114728,87223.0,87200.0,0.0114758]
[1766706698326,0.0114731,87221.0,87200.0,0.0114758]
[1766706698917,0.09752,87222.0,87204.0,0.0114753]
[1766706699129,0.09752,87229.0,87203.0,0.0578]
[1766706699325,0.09752,87229.0,87204.0,0.06185129]
[1766706699621,0.09752,87229.0,87212.0,0.0114742]
[1766706700322,0.00017199,87229.0,87212.0,0.0114742]
[1766706701129,0.06361303,87256.0,87212.0,0.0114742]
[1766706701130,0.00914073,87253.0,87213.0,0.4578]
[1766706701428,0.00914073,87253.0,87213.0,0.0578]
[1766706701429,0.0114701,87245.0,87213.0,0.0578]
[1766706701632,0.09752,87252.0,87223.0,0.0114728]
[1766706701819,0.0114701,87244.0,87223.0,0.0114728]
[1766706702025,0.09752,87252.0,87225.0,0.00017199]
[1766706702333,0.09752,87252.0,87225.0,0.01164449]
[1766706702712,0.0114693,87251.0,87225.0,0.00017199]
[1766706702916,0.03824,87250.0,87225.0,0.00017199]
[1766706703212,0.13576,87250.0,87225.0,0.00017199]
[1766706703413,0.13576,87250.0,87235.0,0.0114712]
[1766706703813,0.00914073,87253.0,87227.0,0.0114723]
[1766706704013,0.15528,87252.0,87240.0,0.0114705]
[1766706704526,0.15528,87252.0,87228.0,0.0114722]
[1766706704527,0.05776,87255.0,87244.0,0.01147]
[1766706704728,0.09752,87254.0,87241.0,0.01164249]
[1766706704928,0.09752,87254.0,87241.0,0.00017199]
[1766706705224,0.0114643,87288.0,87241.0,0.00017199]
[1766706705429,0.15528,87262.0,87250.0,0.0114692]
[1766706705823,0.0114664,87273.0,87241.0,0.00017199]
[1766706706027,0.0114658,87277.0,87243.0,0.0114702]
[1766706706222,0.09752,87268.0,87243.0,0.04237368]
[1766706706418,0.0114643,87288.0,87242.0,0.09752]
[1766706706419,0.0114643,87288.0,87242.0,0.12842348]
[1766706706619,0.0114659,87277.0,87257.0,0.0114684]
[1766706706820,0.09752,87273.0,87259.0,0.011468]
[1766706707024,0.0114665,87272.0,87245.0,0.05776]
[1766706707234,0.0114665,87272.0,87245.0,0.049229]
[1766706707428,0.0114665,87272.0,87255.0,0.0114686]
[1766706707626,0.0114665,87272.0,87245.0,0.049229]
[1766706708436,0.1089863,87273.0,87245.0,0.049229]
[1766706708733,0.0114666,87271.0,87245.0,0.049229]
[1766706708934,0.0114669,87269.0,87245.0,0.049229]
[1766706709334,0.1089864,87272.0,87254.0,0.0114686]
[1766706709530,0.09752,87272.0,87259.0,0.011468]
[1766706709733,0.011462,87306.0,87262.0,0.0114677]
[1766706709734,0.0114652,87281.0,87262.0,0.0114677]
[1766706709932,0.09752,87280.0,87265.0,0.0114673]
[1766706710129,0.09752,87280.0,87264.0,0.01163928]
[1766706710328,0.09752,87280.0,87264.0,0.00017188]
[1766706710630,0.09752,87280.0,87264.0,0.01163928]
[1766706711035,0.09752,87280.0,87264.0,0.00017188]
[1766706711336,0.0114656,87279.0,87264.0,0.00017188]
[1766706711526,0.09752,87280.0,87264.0,0.00017188]
[1766706711722,0.00228879,87383.0,87264.0,0.00017188]
[1766706711931,0.00228879,87383.0,87283.0,0.03090348]
[1766706711932,0.01292764,87333.0,87283.0,0.03090348]
[1766706712123,0.09752,87322.0,87294.0,0.00017188]
[1766706712336,0.1089799,87322.0,87297.0,0.011463]
[1766706712526,0.09752,87322.0,87294.0,0.00017188]
[1766706712723,0.09752,87322.0,87300.0,0.0114626]
[1766706713227,0.09752,87322.0,87305.0,0.011462]
[1766706713427,0.0114546,87363.0,87319.0,0.0114601]
[1766706713428,0.0114567,87347.0,87319.0,0.0114601]
[1766706713627,0.09748,87346.0,87329.0,0.0114589]
[1766706713822,0.00228957,87353.0,87324.0,0.00017178]
[1766706713823,0.02116957,87353.0,87333.0,0.0114583]
[1766706714337,0.02116957,87353.0,87324.0,0.00017178]
[1766706714338,0.0114569,87345.0,87319.0,0.09748]
[1766706714531,0.0114579,87337.0,87295.0,0.06185129]
[1766706714735,0.0114589,87330.0,87303.0,0.0114622]
[1766706714938,0.0114585,87332.0,87290.0,0.06185129]
[1766706715139,0.0114589,87330.0,87303.0,0.0114623]
[1766706715334,0.00017115,87325.0,87316.0,0.0114606]
[1766706715631,0.011457,87344.0,87316.0,0.0114606]
[1766706715838,0.1554,87343.0,87316.0,0.0114606]
[1766706716134,0.0114573,87342.0,87316.0,0.0114606]
[1766706716339,0.1554,87343.0,87309.0,0.09748]
[1766706716637,0.1554,87343.0,87325.0,0.0114594]
[1766706717235,0.01374537,87353.0,87323.0,0.05792]
[1766706717441,0.14305325,87423.0,87323.0,0.05792]
[1766706717442,7e-08,87358.0,87323.0,0.08792]
[1766706717639,7e-08,87358.0,87320.0,0.23480294]
[1766706717826,0.05796007,87358.0,87317.0,0.00017178]
[1766706718236,0.0114571,87343.0,87317.0,0.00017178]
[1766706718541,0.09748,87342.0,87317.0,0.00017178]
[1766706719142,0.0114584,87333.0,87307.0,0.0114617]
[1766706719331,0.1554,87332.0,87307.0,0.0114617]
[1766706719936,0.0114588,87331.0,87307.0,0.0114617]
[1766706720133,0.00017178,87328.0,87310.0,0.00017178]
[1766706720743,0.00017178,87328.0,87310.0,0.01163308]
[1766706720942,0.00017178,87328.0,87310.0,0.00017178]
[1766706721735,0.01163088,87328.0,87310.0,0.00017178]
[1766706722244,0.00017178,87328.0,87310.0,0.00017178]
[1766706722749,0.00017178,87328.0,87289.0,0.0114642]
[1766706722750,0.00017178,87328.0,87292.0,0.09744]
[1766706722942,0.1554,87332.0,87296.0,0.0114631]
[1766706723445,0.1554,87332.0,87292.0,0.09744]
[1766706723742,0.00017178,87321.0,87305.0,0.011462]
[1766706724543,0.00017178,87321.0,87308.0,0.0114616]
[1766706724739,0.00017178,87321.0,87303.0,0.00017178]
[1766706724941,0.09744,87338.0,87304.0,0.0114622]
[1766706725143,0.09744,87337.0,87304.0,0.0114622]
[1766706725342,0.09744,87337.0,87316.0,0.0114606]
[1766706725539,0.0114575,87340.0,87316.0,0.0114606]
[1766706725739,0.0114579,87337.0,87312.0,0.1089011]
[1766706725943,0.0114588,87330.0,87316.0,0.00017178]
[1766706726139,0.00017178,87333.0,87316.0,0.00017178]
[1766706726339,0.0114595,87325.0,87302.0,0.09744]
[1766706726538,0.0114595,87325.0,87303.0,0.0114623]
[1766706726539,0.1088995,87325.0,87303.0,0.0114623]
[1766706726749,0.09744,87325.0,87311.0,0.0114613]
[1766706727246,0.09744,87325.0,87314.0,0.0114608]
[1766706727551,0.00017178,87327.0,87317.0,0.0114605]
[1766706727943,1.78e-06,87327.0,87317.0,0.0114605]
[1766706728139,1.78e-06,87327.0,87316.0,0.0114605]
[1766706728354,0.09744178,87327.0,87309.0,0.00017178]
[1766706728557,0.0114595,87325.0,87297.0,0.09744]
[1766706728860,0.09744178,87327.0,87296.0,0.09744]
[1766706729052,0.0114616,87309.0,87293.0,0.09744]
[1766706729244,0.0114616,87309.0,87285.0,0.0114647]
[1766706729445,0.09744,87316.0,87288.0,0.00017178]
[1766706729446,0.0114611,87313.0,87288.0,0.00017178]
[1766706729751,0.00017178,87306.0,87288.0,0.09761178]
[1766706730150,0.00017178,87306.0,87291.0,0.0114639]
[1766706730948,0.00017178,87306.0,87288.0,0.09761178]
[1766706732645,0.00017178,87306.0,87289.0,0.0114641]
[1766706733455,0.00017178,87306.0,87292.0,0.0114637]
[1766706734458,0.00017178,87306.0,87288.0,0.10907598]
[1766706735053,0.00017178,87306.0,87291.0,0.0114638]
[1766706735556,0.00017178,87306.0,87289.0,0.1089041]
[1766706735756,0.00017178,87306.0,87293.0,0.0114636]
[1766706737353,0.00017178,87306.0,87298.0,0.011463]
[1766706737559,0.97448,87352.0,87308.0,0.0114616]
[1766706737856,0.14305325,87377.0,87286.0,0.0114645]
[1766706737857,0.0114582,87335.0,87315.0,0.0114607]
[1766706738055,0.0114584,87333.0,87315.0,0.0114607]
[1766706738256,0.05792,87340.0,87305.0,0.09744]
[1766706738558,0.00017178,87331.0,87314.0,0.01163258]
[1766706738754,0.0114592,87328.0,87314.0,0.00017178]
[1766706739056,0.00017178,87331.0,87314.0,1.78e-06]
[1766706739256,0.0114596,87325.0,87314.0,1.78e-06]
[1766706739457,0.09744,87325.0,87314.0,1.78e-06]
[1766706739657,0.0114596,87324.0,87314.0,1.78e-06]
[1766706739853,0.09744,87325.0,87314.0,1.78e-06]
[1766706740448,0.0114538,87369.0,87318.0,0.0114603]
[1766706740664,0.09744,87365.0,87335.0,0.0114581]
[1766706740959,0.0114553,87357.0,87338.0,0.0114577]
[1766706741159,0.0114553,87357.0,87334.0,0.0114582]
[1766706741456,0.00017178,87354.0,87337.0,0.00017178]
[1766706741647,0.0114558,87353.0,87337.0,0.00017178]
[1766706742160,0.09761178,87354.0,87337.0,0.00017178]
[1766706742561,0.0114561,87351.0,87337.0,0.00017178]
[1766706742862,0.09761178,87354.0,87337.0,0.00017178]
[1766706743163,0.09761178,87354.0,87340.0,0.0114575]
[1766706744058,0.10906738,87354.0,87337.0,0.00017178]
[1766706744261,0.09761178,87354.0,87337.0,0.00017178]
[1766706744759,0.09761178,87354.0,87337.0,0.01162948]
[1766706745065,0.15532,87356.0,87341.0,0.0114573]
[1766706745253,0.15532,87356.0,87337.0,0.00017178]
[1766706745453,0.15532,87356.0,87341.0,0.0114573]
[1766706746254,0.15532,87356.0,87343.0,0.011457]
[1766706746459,0.15532,87356.0,87330.0,0.08102878]
[1766706746859,0.15532,87356.0,87340.0,0.0114574]
[1766706748154,0.15532,87356.0,87339.0,0.00017178]
[1766706748155,0.15532,87356.0,87344.0,0.0114568]
[1766706749666,0.15532,87356.0,87342.0,0.0114571]
[1766706750560,0.15532,87356.0,87339.0,0.00017178]
[1766706750760,0.15532,87356.0,87345.0,0.0114568]
[1766706751065,0.15532,87356.0,87343.0,0.011457]
[1766706751765,0.15532,87356.0,87346.0,0.0114566]
[1766706751967,0.15532,87356.0,87343.0,0.0114571]
[1766706752556,0.15532,87356.0,87339.0,0.01162928]
[1766706752762,0.15532,87356.0,87341.0,0.0114572]
[1766706752958,0.15532,87356.0,87343.0,0.011457]
[1766706753569,0.15532,87356.0,87339.0,0.09702878]
[1766706754271,0.15532,87356.0,87343.0,0.0114571]
[1766706754767,0.0114556,87355.0,87338.0,0.0114576]
[1766706754967,0.0114556,87355.0,87334.0,0.0974]
[1766706755357,0.0114556,87355.0,87337.0,0.0114578]
[1766706755957,0.0114556,87355.0,87337.0,0.01162958]
[1766706756275,0.0114556,87355.0,87339.0,0.0114576]
[1766706758174,0.1667754,87356.0,87338.0,0.0114576]
[1766706759971,0.1667754,87356.0,87340.0,0.0114574]
[1766706760272,0.15532,87356.0,87340.0,0.0114574]
[1766706760868,0.15532,87356.0,87332.0,0.0114584]
[1766706761068,0.15532,87356.0,87328.0,0.0974]
[1766706761474,0.0114561,87351.0,87328.0,0.0974]
[1766706761772,0.15532,87356.0,87335.0,0.0114581]
[1766706761773,0.0114563,87349.0,87335.0,0.0114581]
[1766706761977,0.0114563,87349.0,87333.0,0.00017178]
[1766706762476,0.05784,87350.0,87333.0,0.00017178]
[1766706763882,0.0692963,87350.0,87336.0,0.0114579]
[1766706764064,0.0114566,87347.0,87333.0,0.00017178]
[1766706764467,0.0114569,87345.0,87333.0,0.00017178]
[1766706764767,0.0114572,87343.0,87314.0,0.13808288]
[1766706764967,0.0114585,87333.0,87314.0,0.0114609]
[1766706765279,0.0114588,87330.0,87312.0,0.011461]
[1766706765469,0.15524,87329.0,87314.0,0.0114608]
[1766706765671,0.15524,87329.0,87313.0,0.00017178]
[1766706765880,0.0114591,87328.0,87313.0,0.00017178]
[1766706766085,0.166699,87329.0,87313.0,0.00017178]
[1766706769086,0.15524,87329.0,87316.0,0.0114605]
[1766706771480,0.15524,87329.0,87313.0,0.00017178]
[1766706771674,0.05784,87328.0,87325.0,0.0114594]
[1766706771983,0.0974,87349.0,87339.0,0.0114576]
[1766706772177,0.0578,87348.0,87339.0,0.0114576]
[1766706772374,0.0578,87347.0,87339.0,0.0114576]
[1766706772581,0.0974,87351.0,87342.0,0.0114572]
[1766706773476,0.00017178,87355.0,87343.0,0.0114571]
[1766706774074,0.12475687,87390.0,87341.0,0.0974]
[1766706774276,0.0114537,87370.0,87348.0,0.0114563]
[1766706774474,0.0578,87369.0,87348.0,0.0114563]
[1766706774674,0.0578,87368.0,87349.0,0.0114562]
[1766706775086,0.00017178,87367.0,87350.0,0.00017178]
[1766706775784,0.00017178,87367.0,87351.0,0.0114559]
[1766706776985,0.00017178,87367.0,87354.0,0.0114556]
[1766706777383,8e-08,87367.0,87362.0,0.0114546]
[1766706778385,8e-08,87367.0,87351.0,0.18249605]
[1766706778891,8e-08,87367.0,87354.0,0.03084145]
[1766706779580,8e-08,87367.0,87364.0,0.0114543]
[1766706780280,8e-08,87367.0,87354.0,0.03084145]
[1766706780476,8e-08,87367.0,87356.0,0.0114554]
[1766706780678,8e-08,87367.0,87356.0,0.0114553]
[1766706781278,8e-08,87367.0,87355.0,0.1552]
[1766706782683,8e-08,87367.0,87351.0,0.03084145]
[1766706782684,0.0114547,87362.0,87351.0,0.0578]
[1766706782889,0.0114547,87362.0,87350.0,1.78e-06]
[1766706785779,0.0114548,87361.0,87350.0,1.78e-06]
[1766706785981,0.0578,87366.0,87336.0,0.04068288]
[1766706785982,0.011456,87352.0,87336.0,0.04068288]
[1766706786186,0.0114563,87350.0,87335.0,0.15516]
[1766706786389,0.0114565,87348.0,87331.0,0.0114586]
[1766706786589,0.0114565,87348.0,87332.0,0.15516]
[1766706787294,0.00017178,87349.0,87333.0,0.0114583]
[1766706787992,0.00017178,87349.0,87332.0,0.15516]
[1766706787993,0.00017178,87349.0,87334.0,0.1203]
[1766706788590,0.0114569,87345.0,87334.0,0.1203]
[1766706788995,0.0114565,87348.0,87334.0,0.1203]
[1766706790299,0.0114565,87348.0,87334.0,0.0973]
[1766706790495,0.00017178,87349.0,87331.0,0.00017178]
[1766706790698,0.00017178,87349.0,87321.0,0.04068288]
[1766706791001,0.0114586,87332.0,87315.0,0.04068288]
[1766706791200,0.0114586,87332.0,87315.0,0.0578]
[1766706791588,0.0114586,87332.0,87315.0,0.05797178]
[1766706792388,0.00010059,87331.0,87315.0,0.05797178]
[1766706793305,0.00010059,87331.0,87315.0,0.06943248]
[1766706794106,0.0114588,87330.0,87315.0,0.05797178]
[1766706795208,0.00027237,87331.0,87315.0,0.05797178]
[1766706795597,0.00027237,87331.0,87316.0,0.0114606]
[1766706796194,0.00027237,87331.0,87315.0,0.05797178]
[1766706796407,0.05776,87338.0,87321.0,0.0114599]
[1766706796595,0.15516,87338.0,87321.0,0.0114599]
[1766706797402,0.15533178,87338.0,87315.0,0.03843168]
[1766706798392,0.15533178,87338.0,87324.0,0.0114595]
[1766706798599,0.15533178,87338.0,87326.0,0.0114593]
[1766706798801,0.15533178,87338.0,87328.0,0.011459]
[1766706799704,0.09757178,87338.0,87328.0,0.011459]
[1766706800106,0.09757178,87338.0,87330.0,0.0114587]
[1766706800510,0.09757178,87338.0,87332.0,0.0114584]
[1766706800706,0.09757178,87338.0,87329.0,0.0114589]
[1766706801704,0.0974,87345.0,87333.0,0.0114583]
[1766706801905,0.0114563,87350.0,87333.0,0.0114583]
[1766706802107,0.0114563,87350.0,87334.0,0.1203]
[1766706803499,0.05793178,87351.0,87334.0,0.1203]
[1766706803713,0.0114572,87343.0,87334.0,0.1203]
[1766706804214,0.011457,87344.0,87334.0,0.1203]
[1766706804714,0.0114566,87347.0,87334.0,0.0923]
[1766706806014,0.05793178,87351.0,87334.0,0.0923]
[1766706806213,0.05793178,87351.0,87333.0,0.00017178]
[1766706806414,0.011457,87344.0,87333.0,0.00017178]
[1766706806799,0.05793178,87351.0,87333.0,0.00017178]
[1766706807416,0.0114572,87343.0,87333.0,0.00017178]
[1766706810114,0.0114574,87341.0,87333.0,1.78e-06]
[1766706810314,0.0114577,87339.0,87333.0,1.78e-06]
[1766706810517,0.0114573,87342.0,87333.0,1.78e-06]
[1766706810714,0.0114573,87342.0,87320.0,0.0974]
[1766706810715,0.15516,87341.0,87320.0,0.06185129]
[1766706810919,0.0114591,87328.0,87305.0,0.15925129]
[1766706811113,0.0114591,87328.0,87309.0,0.0114615]
[1766706811320,0.05776,87332.0,87308.0,0.0114616]
[1766706811821,0.00017178,87329.0,87311.0,0.00017178]
[1766706812112,0.0114593,87327.0,87311.0,0.00017178]
[1766706813215,0.0114593,87327.0,87312.0,0.0114611]
[1766706813618,0.0114593,87327.0,87311.0,0.00017178]
[1766706814219,0.0114593,87327.0,87312.0,0.0114611]
[1766706815218,0.00017178,87329.0,87311.0,0.00017178]
[1766706815521,0.0114591,87328.0,87294.0,0.05776]
[1766706815720,0.0114607,87316.0,87299.0,0.0114627]
[1766706816326,0.0114607,87316.0,87299.0,0.01163448]
[1766706816620,0.0692199,87322.0,87299.0,0.00017178]
[1766706816822,0.0114602,87320.0,87299.0,0.00017178]
[1766706817022,0.0114602,87320.0,87305.0,0.011462]
[1766706817821,0.0114602,87320.0,87305.0,0.05214482]
[1766706818224,0.0114601,87321.0,87305.0,0.04068282]
[1766706818419,0.0114616,87309.0,87299.0,0.00017178]
[1766706818628,0.0114612,87312.0,87300.0,0.1203]
[1766706818820,0.0114601,87320.0,87300.0,0.1203]
[1766706819015,0.0114611,87313.0,87300.0,0.1203]
[1766706819223,0.0114614,87311.0,87300.0,0.1203]
[1766706819825,0.0114614,87310.0,87300.0,0.09706074]
[1766706820028,0.0114614,87311.0,87300.0,0.09706074]
[1766706820726,0.0114616,87309.0,87300.0,0.09706074]
[1766706821419,0.0114612,87312.0,87300.0,0.09706074]
[1766706821727,0.0114612,87312.0,87300.0,0.06206073]
[1766706822227,0.0114612,87312.0,87299.0,0.00017178]
[1766706824329,0.0114615,87310.0,87299.0,0.00017178]
[1766706825421,0.0692211,87313.0,87299.0,0.00017178]
[1766706828834,0.0114613,87311.0,87299.0,0.00017178]
[1766706829034,0.1552,87313.0,87299.0,0.00017178]
[1766706829335,0.0114625,87302.0,87299.0,8e-08]
[1766706829628,0.0114625,87302.0,87293.0,0.00229115]
[1766706829629,0.1552,87313.0,87293.0,1.21e-06]
[1766706829831,0.0114615,87310.0,87293.0,1.21e-06]
[1766706830034,0.1552,87313.0,87293.0,1.21e-06]
[1766706830035,0.0114614,87311.0,87296.0,0.0114632]
[1766706830830,0.011462,87306.0,87295.0,0.00017178]
[1766706832323,0.00017178,87312.0,87293.0,1.21e-06]
[1766706832623,0.0114627,87301.0,87293.0,1.21e-06]
[1766706834929,0.00017178,87312.0,87293.0,1.21e-06]
[1766706835135,0.0114633,87296.0,87293.0,1.21e-06]
[1766706835728,0.0114629,87299.0,87293.0,1.21e-06]
[1766706835930,0.0114632,87297.0,87293.0,1.21e-06]
[1766706836130,0.0114634,87295.0,87293.0,1.21e-06]
[1766706836330,0.011463,87298.0,87293.0,1.21e-06]
[1766706836736,0.05776,87304.0,87293.0,1.21e-06]
[1766706836935,0.0114633,87296.0,87293.0,1.21e-06]
[1766706837439,0.0114633,87296.0,87282.0,0.10141561]
[1766706838130,0.0114633,87296.0,87281.0,0.1666651]
[1766706838131,0.0114633,87296.0,87281.0,0.0114651]
[1766706838330,0.0114625,87302.0,87285.0,0.0114647]
[1766706838530,0.09744,87303.0,87280.0,0.1552]
[1766706838740,0.0114625,87302.0,87280.0,0.1552]
[1766706838930,0.0114625,87302.0,87286.0,0.0114645]
[1766706841244,0.0114628,87300.0,87283.0,0.0114649]
[1766706841448,0.0114625,87302.0,87288.0,0.0114642]
[1766706841844,0.0114628,87300.0,87285.0,0.0114646]
[1766706846154,0.0114628,87300.0,87287.0,0.03090283]
[1766706846656,0.1089024,87303.0,87287.0,0.04236723]
[1766706846857,0.0114626,87301.0,87287.0,0.04236723]
[1766706847855,0.09744,87303.0,87287.0,0.04236723]
[1766706848558,0.09744,87303.0,87289.0,0.0114641]
[1766706848947,0.0114628,87300.0,87288.0,0.03090283]
[1766706849147,0.1089024,87303.0,87287.0,0.03090283]
[1766706849862,0.0114627,87301.0,87287.0,0.03090283]
[1766706850459,0.1089024,87303.0,87287.0,0.03090283]
[1766706850962,0.011463,87299.0,87287.0,0.03090283]
[1766706851148,0.011463,87299.0,87287.0,2.83e-06]
[1766706855658,0.1089024,87303.0,87287.0,2.83e-06]
[1766706855864,0.0114627,87301.0,87287.0,2.83e-06]
[1766706856062,0.09744,87303.0,87287.0,0.0114644]
[1766706856259,0.0114625,87302.0,87287.0,0.0114644]
[1766706857665,0.0114625,87302.0,87284.0,0.05263907]
[1766706858966,0.09744,87303.0,87285.0,0.0114646]
[1766706859163,0.0114625,87302.0,87285.0,0.0114646]
[1766706861270,0.09744,87303.0,87285.0,0.05263887]
[1766706861466,0.1089024,87303.0,87285.0,0.05263887]
[1766706861668,0.0114627,87301.0,87285.0,0.04117427]
[1766706861869,0.0114627,87301.0,87284.0,0.04117427]
[1766706863262,0.0114627,87301.0,87285.0,0.04117427]
[1766706863463,0.0114627,87301.0,87285.0,0.05263887]
[1766706864459,0.09744,87303.0,87285.0,0.04117427]
[1766706866173,0.0114629,87299.0,87286.0,0.04117427]
[1766706866364,0.09744,87303.0,87289.0,0.12489001]
[1766706866568,0.09744,87303.0,87292.0,0.0114637]
[1766706866870,0.00017178,87312.0,87293.0,0.12489001]
[1766706867072,0.05793178,87312.0,87293.0,0.04117427]
[1766706867271,0.05793178,87312.0,87292.0,0.09893427]
[1766706867467,0.00017178,87312.0,87294.0,0.0114635]
[1766706867669,0.05793178,87312.0,87292.0,0.09893427]
[1766706867864,0.0114614,87311.0,87293.0,0.0114636]
[1766706868062,0.06939308,87312.0,87296.0,0.0114632]
[1766706869275,0.05793178,87312.0,87300.0,0.12489001]
[1766706869578,0.1552,87321.0,87307.0,0.0114617]
[1766706870080,0.1666601,87321.0,87304.0,0.0114621]
[1766706870374,0.1666601,87321.0,87285.0,0.08140278]
[1766706870375,0.12489001,87320.0,87299.0,0.04117427]
[1766706870580,0.011461,87314.0,87301.0,0.00017178]
[1766706870880,0.0114615,87310.0,87302.0,0.05776]
[1766706871079,0.00017178,87318.0,87301.0,1.78e-06]
[1766706873482,0.0114609,87314.0,87301.0,1.78e-06]
[1766706875770,0.0114605,87317.0,87302.0,0.0114624]
[1766706875970,0.00017178,87318.0,87308.0,0.0114616]
[1766706876184,0.00017178,87318.0,87308.0,0.13635161]
[1766706876783,0.00017178,87318.0,87305.0,0.011462]
[1766706878773,0.00017178,87318.0,87302.0,0.0114624]
[1766706878979,0.00017178,87318.0,87301.0,1.78e-06]
[1766706879179,0.0114609,87314.0,87301.0,1.78e-06]
[1766706879771,0.0114605,87317.0,87301.0,0.01146428]
[1766706880776,0.0114618,87307.0,87301.0,1.78e-06]
[1766706880970,0.0114618,87307.0,87297.0,1.78e-06]
[1766706881174,0.0114618,87307.0,87292.0,0.10141561]
[1766706881584,0.0114616,87309.0,87293.0,0.0114636]
[1766706882587,0.0691812,87312.0,87293.0,0.0114636]
[1766706884090,0.0114615,87310.0,87293.0,0.0114636]
[1766706887089,0.0114615,87310.0,87295.0,0.0114633]
[1766706887295,0.05772,87312.0,87295.0,0.0114633]
[1766706887494,0.05772,87312.0,87297.0,0.0114631]
[1766706889787,0.0114613,87311.0,87294.0,0.0114635]
[1766706890894,0.0114616,87309.0,87294.0,0.0114635]
[1766706891592,0.0114616,87309.0,87293.0,0.04117427]
[1766706891988,0.0114616,87309.0,87293.0,0.05263787]
[1766706892492,0.0114616,87309.0,87295.0,0.0114633]
[1766706893588,0.0691812,87312.0,87295.0,0.0114633]
[1766706894595,0.0114615,87310.0,87295.0,0.0114633]
[1766706895393,0.05772,87312.0,87295.0,0.0114633]
[1766706895394,0.05772,87312.0,87298.0,0.0114629]
[1766706900501,0.05772,87312.0,87297.0,0.04117427]
[1766706900802,0.05772,87312.0,87296.0,0.04117427]
[1766706901199,0.05772,87312.0,87295.0,0.05263757]
[1766706901403,0.05772,87312.0,87297.0,0.011463]
[1766706901899,0.05772,87312.0,87300.0,0.0114627]
[1766706902492,0.05772,87312.0,87291.0,0.09889427]
[1766706903401,0.0691812,87312.0,87293.0,0.0114636]
[1766706903606,0.05772,87312.0,87293.0,0.0114636]
[1766706904503,0.05772,87312.0,87295.0,0.0114633]
[1766706905004,0.05772,87312.0,87297.0,0.011463]
[1766706905194,0.05772,87312.0,87300.0,0.13635261]
[1766706905593,0.05772,87312.0,87300.0,0.12489001]
[1766706905794,0.05772,87312.0,87297.0,0.0114631]
[1766706908313,0.0691812,87312.0,87294.0,0.0114634]
[1766706909203,0.05772,87312.0,87291.0,0.09889427]
[1766706909393,0.05772,87312.0,87292.0,0.04117427]
[1766706909598,0.05772,87312.0,87296.0,0.0114632]
[1766706910814,0.0114613,87311.0,87293.0,0.05772]
[1766706911112,0.0114616,87309.0,87299.0,0.03095476]
[1766706912412,0.0114616,87309.0,87301.0,0.03095476]
[1766706912613,0.0691812,87312.0,87301.0,0.03095476]
[1766706914519,0.0691812,87312.0,87302.0,0.03095476]
[1766706917016,0.05772,87317.0,87302.0,0.03095476]
[1766706917216,0.0114607,87316.0,87303.0,0.03095476]
[1766706918108,0.0114607,87316.0,87302.0,0.03095476]
[1766706918809,0.0114607,87316.0,87303.0,0.03095476]
[1766706923120,0.05772,87317.0,87310.0,0.0114614]
[1766706923523,0.05772,87320.0,87310.0,0.0114614]
[1766706923727,0.03444364,87320.0,87310.0,0.0114614]
[1766706924116,0.05772,87328.0,87311.0,0.03095476]
[1766706924316,0.05772,87329.0,87318.0,0.12489001]
[1766706924626,0.05772,87329.0,87315.0,0.03095476]
[1766706925520,0.05772,87329.0,87314.0,0.04241556]
[1766706925825,0.05772,87329.0,87314.0,0.0114608]
[1766706926622,0.05772,87329.0,87316.0,0.0114606]
[1766706928814,0.00017178,87332.0,87312.0,0.04241586]
[1766706929013,0.00017178,87332.0,87312.0,0.03095476]
[1766706930330,0.00017178,87332.0,87316.0,0.0114605]
[1766706932035,0.00017178,87332.0,87318.0,0.0114603]
[1766706933432,0.0114587,87331.0,87315.0,0.0114607]
[1766706933934,0.00017178,87332.0,87315.0,0.0114607]
[1766706934534,0.01163038,87332.0,87315.0,0.0114607]
[1766706934742,0.00017178,87332.0,87318.0,0.0114603]
[1766706935241,0.0114587,87331.0,87315.0,0.0114607]
[1766706938545,0.00017178,87332.0,87317.0,0.0114604]
[1766706939454,0.0114588,87330.0,87314.0,0.0114608]
[1766706939645,0.0114591,87328.0,87313.0,0.03095476]
[1766706939847,0.0114587,87331.0,87315.0,0.0114607]
[1766706940353,0.0114587,87331.0,87313.0,0.03095476]
[1766706940651,0.0114587,87331.0,87314.0,0.0114609]
[1766706941747,0.00017178,87332.0,87316.0,0.0114606]
[1766706941945,0.0114587,87331.0,87313.0,0.04241566]
[1766706942145,0.0114587,87331.0,87315.0,0.0114607]
[1766706943450,0.05772,87335.0,87314.0,0.03095476]
[1766706943646,0.05772,87335.0,87324.0,0.0114595]
[1766706944453,0.0974,87340.0,87320.0,0.03095476]
[1766706944646,0.2436,87352.0,87321.0,0.0974]
[1766706944647,0.00017178,87339.0,87321.0,0.0974]
[1766706944853,0.01092891,87351.0,87333.0,0.0114583]
[1766706944854,0.0114561,87351.0,87333.0,0.0114583]
[1766706945054,0.15736957,87353.0,87331.0,0.0974]
[1766706945253,0.0114561,87351.0,87332.0,0.0114585]
[1766706945952,0.00017178,87350.0,87333.0,0.00017178]
[1766706946152,0.00017178,87350.0,87334.0,0.0114582]
[1766706947352,0.00017178,87350.0,87333.0,0.00017178]
[1766706947557,0.05768,87359.0,87343.0,0.011457]
[1766706947745,0.0114551,87358.0,87340.0,0.0114574]
[1766706948158,0.0691351,87359.0,87343.0,0.0114571]
[1766706948748,0.09757178,87360.0,87343.0,0.0114571]
[1766706948749,0.00017178,87360.0,87343.0,0.0114571]